fUSD/lending_fUSD_20250618
["ID","MTS","AMOUNT","RATE_DAILY","PERIOD"]
[366359328,1750209050551,-490.0,0.00016438,2]
[366359329,1750209050565,-490.0,0.00016438,2]
[366359330,1750209050578,-490.0,0.00016438,2]
[366359331,1750209050589,-1349.73,0.00016438,2]
[366359332,1750209050600,-500.0,0.00016438,2]
[366359333,1750209050612,-500.0,0.00016438,2]
[366359334,1750209050625,-899.1,0.00016438,2]
[366359335,1750209050639,-500.0,0.00016438,2]
[366359336,1750209050654,-500.0,0.00016438,2]
[366359337,1750209050665,-5602.77,0.00016438,2]
[366359338,1750209050676,-490.0,0.00016438,2]
[366359339,1750209050688,-490.0,0.00016438,2]
[366359340,1750209050700,-1223.99,0.00016438,2]
[366359341,1750209050712,-1560.99,0.00016438,2]
[366359342,1750209050724,-13625.2,0.00016438,2]
[366359343,1750209050735,-4840.12,0.00016438,2]
[366359344,1750209050747,-1957.71,0.00016438,2]
[366359345,1750209050759,-490.0,0.00016438,2]
[366359346,1750209050771,-550.92,0.00016438,2]
[366359347,1750209050783,-2533.87,0.00016438,2]
[366359348,1750209050796,-490.0,0.00016438,2]
[366359349,1750209050808,-8764.52,0.00016438,2]
[366359350,1750209050820,-3731.3,0.00016438,2]
[366359351,1750209050832,-3626.98,0.00016438,2]
[366359352,1750209050844,-215.01390283,0.00016438,2]
[366359353,1750209050856,-150.0,0.00016438,2]
[366359354,1750209050867,-1027.55,0.00016438,2]
[366359355,1750209050879,-1531.71,0.00016438,2]
[366359356,1750209050892,-151.0,0.00016438,2]
[366359357,1750209050904,-3337.04,0.00016438,2]
[366359358,1750209050917,-742.78,0.00016438,2]
[366359359,1750209050928,-151.0,0.00016438,2]
[366359360,1750209050940,-9175.93,0.00016438,2]
[366359361,1750209050951,-151.0,0.00016438,2]
[366359362,1750209050972,-151.0,0.00016438,2]
[366359363,1750209050984,-290.94861063,0.00016438,2]
[366359364,1750209050996,-2159.16,0.00016438,2]
[366359365,1750209051007,-490.0,0.00016438,2]
[366359366,1750209051019,-490.0,0.00016438,2]
[366359367,1750209051031,-490.0,0.00016438,2]
[366359368,1750209051043,-1323.61,0.00016438,2]
[366359369,1750209051055,-1849.31,0.00016438,2]
[366359370,1750209051067,-151.0,0.00016438,2]
[366359371,1750209051079,-396.54132459,0.00016438,2]
[366359372,1750209051092,-246.286976,0.00016438,2]
[366359373,1750209051104,-497.4,0.00016438,2]
[366359374,1750209051116,-2624.13,0.00016438,2]
[366359375,1750209051127,-2047.41,0.00016438,2]
[366359376,1750209051139,-490.0,0.00016438,2]
[366359377,1750209051151,-1986.52,0.00016438,2]
[366359378,1750209051163,-2401.34,0.00016438,2]
[366359379,1750209051174,-490.0,0.00016438,2]
[366359380,1750209051186,-620.7,0.00016438,2]
[366359381,1750209051197,-457.4194355,0.00016438,2]
[366359382,1750209051208,-2005.26,0.00016438,2]
[366359383,1750209051220,-150.0,0.00016438,2]
[366359384,1750209051231,-2330.61,0.00016438,2]
[366359385,1750209051243,-631.27,0.00016438,2]
[366359386,1750209051255,-490.0,0.00016438,2]
[366359387,1750209051267,-151.0,0.00016438,2]
[366359388,1750209051278,-4829.35,0.00016438,2]
[366359389,1750209051289,-151.0,0.00016438,2]
[366359390,1750209051300,-490.0,0.00016438,2]
[366359391,1750209051311,-490.0,0.00016438,2]
[366359392,1750209051323,-151.0,0.00016438,2]
[366359393,1750209051335,-490.0,0.00016438,2]
[366359394,1750209051347,-490.0,0.00016438,2]
[366359395,1750209051359,-612.01,0.00016438,2]
[366359396,1750209051370,-490.0,0.00016438,2]
[366359397,1750209051382,-3172.52,0.00016438,2]
[366359398,1750209051393,-490.0,0.00016438,2]
[366359399,1750209051404,-1543.74,0.00016438,2]
[366359400,1750209051415,-1239.69,0.00016438,2]
[366359401,1750209051426,-1503.5,0.00016438,2]
[366359402,1750209051438,-490.0,0.00016438,2]
[366359403,1750209051451,-6839.64,0.00016438,2]
[366359404,1750209051461,-635.85,0.00016438,2]
[366359405,1750209051473,-151.0,0.00016438,2]
[366359406,1750209051485,-151.0,0.00016438,2]
[366359407,1750209051496,-490.0,0.00016438,2]
[366359408,1750209051508,-490.0,0.00016438,2]
[366359409,1750209051520,-490.0,0.00016438,2]
[366359410,1750209051533,-490.0,0.00016438,2]
[366359411,1750209051544,-1990.59,0.00016438,2]
[366359412,1750209051555,-1391.06,0.00016438,2]
[366359413,1750209051567,-4503.01,0.00016438,2]
[366359414,1750209051578,-490.0,0.00016438,2]
[366359415,1750209051590,-4121.01,0.00016438,2]
[366359416,1750209051602,-490.0,0.00016438,2]
[366359417,1750209051614,-1358.82,0.00016438,2]
[366359418,1750209051625,-7846.76,0.00016438,2]
[366359419,1750209051638,-2607.34,0.00016438,2]
[366359420,1750209051654,-1403.43,0.00016438,2]
[366359421,1750209051666,-1883.27,0.00016438,2]
[366359422,1750209051678,-1242.42,0.00016438,2]
[366359423,1750209051689,-151.0,0.00016438,2]
[366359424,1750209051700,-490.0,0.00016438,2]
[366359425,1750209051711,-274.775132,0.00016438,2]
[366359426,1750209051723,-490.0,0.00016438,2]
[366359427,1750209051734,-2692.83,0.00016438,2]
[366359428,1750209051746,-490.0,0.00016438,2]
[366359429,1750209051757,-490.0,0.00016438,2]
[366359430,1750209051770,-4110.08,0.00016438,2]
[366359431,1750209051783,-789.66,0.00016438,2]
[366359432,1750209051796,-550.46,0.00016438,2]
[366359433,1750209051807,-490.0,0.00016438,2]
[366359434,1750209051819,-151.0,0.00016438,2]
[366359435,1750209051830,-151.0,0.00016438,2]
[366359436,1750209051842,-151.0,0.00016438,2]
[366359437,1750209051855,-758.96,0.00016438,2]
[366359438,1750209051866,-151.0,0.00016438,2]
[366359439,1750209051878,-774.87,0.00016438,2]
[366359440,1750209051889,-1175.52,0.00016438,2]
[366359441,1750209051900,-322.9216383,0.00016438,2]
[366359442,1750209051912,-490.0,0.00016438,2]
[366359443,1750209051923,-22805.07,0.00016438,2]
[366359444,1750209051934,-151.0,0.00016438,2]
[366359445,1750209051950,-151.0,0.00016438,2]
[366359446,1750209051963,-151.0,0.00016438,2]
[366359447,1750209051975,-1131.04,0.00016438,2]
[366359448,1750209051986,-151.0,0.00016438,2]
[366359449,1750209051998,-490.0,0.00016438,2]
[366359450,1750209052010,-155.288906,0.00016438,2]
[366359451,1750209052022,-151.0,0.00016438,2]
[366359452,1750209052033,-251.0813,0.00016438,2]
[366359453,1750209052044,-762.21,0.00016438,2]
[366359454,1750209052055,-11217.76,0.00016438,2]
[366359455,1750209052067,-581.84480136,0.00016438,2]
[366359456,1750209052078,-827.29,0.00016438,2]
[366359457,1750209052090,-490.0,0.00016438,2]
[366359458,1750209052101,-490.0,0.00016438,2]
[366359459,1750209052112,-240.613379,0.00016438,2]
[366359460,1750209052123,-240.613379,0.00016438,2]
[366359461,1750209052135,-240.613379,0.00016438,2]
[366359462,1750209052146,-240.613379,0.00016438,2]
[366359463,1750209052158,-490.0,0.00016438,2]
[366359464,1750209052170,-500.0,0.00016438,2]
[366359465,1750209052183,-500.0,0.00016438,2]
[366359466,1750209052195,-500.0,0.00016438,2]
[366359467,1750209052206,-490.0,0.00016438,2]
[366359468,1750209052217,-494.0,0.00016438,2]
[366359469,1750209052229,-766.87,0.00016438,2]
[366359470,1750209052240,-1894.11,0.00016438,2]
[366359471,1750209052251,-240.613379,0.00016438,2]
[366359472,1750209052262,-490.0,0.00016438,2]
[366359473,1750209052273,-240.613379,0.00016438,2]
[366359474,1750209052285,-240.613379,0.00016438,2]
[366359475,1750209052296,-240.613379,0.00016438,2]
[366359476,1750209052307,-490.0,0.00016438,2]
[366359477,1750209052318,-2613.46,0.00016438,2]
[366359478,1750209052329,-490.0,0.00016438,2]
[366359479,1750209052341,-249.563023,0.00016438,2]
[366359480,1750209052352,-2728.68,0.00016438,2]
[366359481,1750209052363,-490.0,0.00016438,2]
[366359482,1750209052375,-820.02,0.00016438,2]
[366359483,1750209052386,-7919.79,0.00016438,2]
[366359484,1750209052398,-490.0,0.00016438,2]
[366359485,1750209052409,-683.87,0.00016438,2]
[366359486,1750209052421,-490.0,0.00016438,2]
[366359487,1750209052432,-1008.86,0.00016438,2]
[366359488,1750209052444,-11226.89,0.00016438,2]
[366359489,1750209052455,-6384.24,0.00016438,2]
[366359490,1750209052467,-633.41,0.00016438,2]
[366359491,1750209052479,-2531.64,0.00016438,2]
[366359492,1750209052490,-490.0,0.00016438,2]
[366359493,1750209052501,-490.0,0.00016438,2]
[366359494,1750209052514,-1321.11,0.00016438,2]
[366359495,1750209052526,-997.03,0.00016438,2]
[366359496,1750209052537,-3581.76,0.00016438,2]
[366359497,1750209052548,-490.0,0.00016438,2]
[366359498,1750209052559,-5514.86,0.00016438,2]
[366359499,1750209052570,-490.0,0.00016438,2]
[366359500,1750209052582,-757.58,0.00016438,2]
[366359501,1750209052593,-1012.97,0.00016438,2]
[366359502,1750209052603,-490.0,0.00016438,2]
[366359503,1750209052615,-571.77,0.00016438,2]
[366359504,1750209052626,-1133.52,0.00016438,2]
[366359505,1750209052638,-490.0,0.00016438,2]
[366359506,1750209052651,-490.0,0.00016438,2]
[366359507,1750209052663,-583.59,0.00016438,2]
[366359508,1750209052674,-1357.44,0.00016438,2]
[366359509,1750209052686,-490.0,0.00016438,2]
[366359510,1750209052697,-400.6481076,0.00016438,2]
[366359511,1750209052708,-6437.49,0.00016438,2]
[366359512,1750209052721,-490.0,0.00016438,2]
[366359513,1750209052732,-340.44825134,0.00016438,2]
[366359514,1750209052743,-1997.75,0.00016438,2]
[366359515,1750209052754,-4075.75,0.00016438,2]
[366359516,1750209052766,-490.0,0.00016438,2]
[366359517,1750209052778,-1957.16,0.00016438,2]
[366359518,1750209052789,-841.57,0.00016438,2]
[366359519,1750209052800,-490.0,0.00016438,2]
[366359520,1750209052812,-173.43094586,0.00016438,2]
[366359521,1750209052824,-829.28,0.00016438,2]
[366359522,1750209052835,-1133.09,0.00016438,2]
[366359523,1750209052847,-490.0,0.00016438,2]
[366359524,1750209052859,-1204.24,0.00016438,2]
[366359525,1750209052871,-490.0,0.00016438,2]
[366359526,1750209052883,-823.01,0.00016438,2]
[366359527,1750209052895,-151.0,0.00016438,2]
[366359528,1750209052906,-151.0,0.00016438,2]
[366359529,1750209052918,-151.0,0.00016438,2]
[366359530,1750209052929,-151.0,0.00016438,2]
[366359531,1750209052941,-490.0,0.00016438,2]
[366359532,1750209052954,-3432.25,0.00016438,2]
[366359533,1750209052967,-490.0,0.00016438,2]
[366359534,1750209052984,-151.0,0.00016438,2]
[366359535,1750209052995,-490.0,0.00016438,2]
[366359536,1750209053008,-151.0,0.00016438,2]
[366359537,1750209053020,-151.0,0.00016438,2]
[366359538,1750209053034,-151.0,0.00016438,2]
[366359539,1750209053047,-1393.05,0.00016438,2]
[366359540,1750209053059,-1457.93,0.00016438,2]
[366359541,1750209053071,-1424.05,0.00016438,2]
[366359542,1750209053084,-490.0,0.00016438,2]
[366359543,1750209053095,-490.0,0.00016438,2]
[366359544,1750209053108,-1951.18,0.00016438,2]
[366359545,1750209053120,-572.65,0.00016438,2]
[366359546,1750209053132,-3118.61,0.00016438,2]
[366359547,1750209053144,-1213.55,0.00016438,2]
[366359548,1750209053156,-2051.1,0.00016438,2]
[366359549,1750209053168,-623.8,0.00016438,2]
[366359550,1750209053179,-490.0,0.00016438,2]
[366359551,1750209053192,-4863.28,0.00016438,2]
[366359552,1750209053203,-490.0,0.00016438,2]
[366359553,1750209053215,-490.0,0.00016438,2]
[366359554,1750209053228,-5889.98,0.00016438,2]
[366359555,1750209053240,-5889.98,0.00016438,2]
[366359556,1750209053252,-2587.15,0.00016438,2]
[366359557,1750209053264,-5889.98,0.00016438,2]
[366359558,1750209053275,-5889.98,0.00016438,2]
[366359559,1750209053287,-1095.71,0.00016438,2]
[366359560,1750209053298,-490.0,0.00016438,2]
[366359561,1750209053309,-490.0,0.00016438,2]
[366359562,1750209053321,-648.01,0.00016438,2]
[366359563,1750209053332,-2419.32,0.00016438,2]
[366359564,1750209053344,-490.0,0.00016438,2]
[366359565,1750209053355,-1510.97,0.00016438,2]
[366359566,1750209053366,-3716.43,0.00016438,2]
[366359567,1750209053378,-1238.17,0.00016438,2]
[366359568,1750209053389,-500.0,0.00016438,2]
[366359569,1750209053401,-1583.55,0.00016438,2]
[366359570,1750209053413,-1333.6,0.00016438,2]
[366359571,1750209053425,-500.0,0.00016438,2]
[366359572,1750209053438,-490.0,0.00016438,2]
[366359573,1750209053450,-490.0,0.00016438,2]
[366359574,1750209053462,-3940.1,0.00016438,2]
[366359575,1750209053473,-490.0,0.00016438,2]
[366359576,1750209053485,-948.95,0.00016438,2]
[366359577,1750209053496,-1507.3,0.00016438,2]
[366359578,1750209053507,-490.0,0.00016438,2]
[366359579,1750209053519,-150.0,0.00016438,2]
[366359580,1750209053530,-875.91,0.00016438,2]
[366359581,1750209053542,-543.03,0.00016438,2]
[366359582,1750209053554,-633.58,0.00016438,2]
[366359583,1750209053565,-25411.17,0.00016438,2]
[366359584,1750209053582,-5203.76,0.00016438,2]
[366359585,1750209053593,-490.0,0.00016438,2]
[366359586,1750209053605,-594.74,0.00016438,2]
[366359587,1750209053617,-1798.69,0.00016438,2]
[366359588,1750209053630,-490.0,0.00016438,2]
[366359589,1750209053644,-490.0,0.00016438,2]
[366359590,1750209053655,-1311.61,0.00016438,2]
[366359591,1750209053667,-2856.36,0.00016438,2]
[366359592,1750209053678,-2756.04,0.00016438,2]
[366359593,1750209053690,-1722.78,0.00016438,2]
[366359594,1750209053702,-490.0,0.00016438,2]
[366359595,1750209053713,-576.39,0.00016438,2]
[366359596,1750209053724,-490.0,0.00016438,2]
[366359597,1750209053734,-490.0,0.00016438,2]
[366359598,1750209053745,-490.0,0.00016438,2]
[366359599,1750209053756,-490.0,0.00016438,2]
[366359600,1750209053768,-1483.4,0.00016438,2]
[366359601,1750209053780,-18329.57,0.00016438,2]
[366359602,1750209053791,-490.0,0.00016438,2]
[366359603,1750209053802,-490.0,0.00016438,2]
[366359604,1750209053811,-490.0,0.00016438,2]
[366359605,1750209053823,-4878.98,0.00016438,2]
[366359606,1750209053833,-490.0,0.00016438,2]
[366359607,1750209053842,-490.0,0.00016438,2]
[366359608,1750209053852,-490.0,0.00016438,2]
[366359609,1750209053862,-490.0,0.00016438,2]
[366359610,1750209053872,-1387.87,0.00016438,2]
[366359611,1750209053882,-1792.34,0.00016438,2]
[366359612,1750209053893,-7941.86,0.00016438,2]
[366359613,1750209053903,-1006.56,0.00016438,2]
[366359614,1750209053913,-1284.15,0.00016438,2]
[366359615,1750209053923,-2529.6,0.00016438,2]
[366359616,1750209053934,-1221.0,0.00016438,2]
[366359617,1750209054328,-490.0,0.00016438,2]
[366359618,1750209054524,-151.0,0.00016438,2]
[366359619,1750209054553,-490.0,0.00016438,2]
[366359620,1750209054570,-151.0,0.00016438,2]
[366359621,1750209054580,-683.34,0.00016438,2]
[366359622,1750209054590,-229.292578,0.00016438,2]
[366359623,1750209054600,-490.0,0.00016438,2]
[366359624,1750209054610,-490.0,0.00016438,2]
[366359625,1750209054619,-151.0,0.00016438,2]
[366359626,1750209054629,-151.0,0.00016438,2]
[366359627,1750209054641,-199.29134405,0.00016438,2]
[366359628,1750209054652,-305.842446,0.00016438,2]
[366359629,1750209054662,-305.842446,0.00016438,2]
[366359630,1750209054672,-716.93,0.00016438,2]
[366359631,1750209054683,-490.0,0.00016438,2]
[366359632,1750209054692,-305.842446,0.00016438,2]
[366359633,1750209054702,-305.842446,0.00016438,2]
[366359634,1750209054713,-151.0,0.00016438,2]
[366359635,1750209054723,-6742.65,0.00016438,2]
[366359636,1750209054733,-509.31,0.00016438,2]
[366359637,1750209054744,-303.29,0.00016438,2]
[366359638,1750209054754,-151.0,0.00016438,2]
[366359639,1750209054764,-833.87704394,0.00016443,2]
[366359640,1750209054774,-3071.76560768,0.00016452,2]
[366359641,1750209054784,-151.0,0.00016452,2]
[366359642,1750209054794,-151.0,0.00016452,2]
[366359643,1750209054804,-201.537452,0.00016452,2]
[366359644,1750209054814,-1070.287,0.00016452,2]
[366359645,1750209054824,-1288.7656338,0.00016463,2]
[366359646,1750209054834,-200.0,0.00016465,2]
[366359647,1750209054845,-200.0,0.00016465,2]
[366359648,1750209054855,-150.0,0.00016465,2]
[366359649,1750209054865,-200.0,0.00016465,2]
[366359650,1750209054875,-200.0,0.00016465,2]
[366359651,1750209054885,-150.0,0.00016465,2]
[366359652,1750209054895,-500.0,0.00016465,2]
[366359653,1750209054905,-500.0,0.00016465,2]
[366359654,1750209054916,-150.0,0.00016465,2]
[366359655,1750209054926,-166.51,0.0001647,2]
[366359656,1750209054936,-151.0,0.00016487,2]
[366359657,1750209054946,-162.079023,0.00016487,2]
[366359658,1750209054956,-233.625528,0.00016487,2]
[366359659,1750209054967,-162.079023,0.00016487,2]
[366359660,1750209054978,-233.625528,0.00016487,2]
[366359661,1750209054989,-163.48,0.00016487,2]
[366359662,1750209055000,-163.48,0.00016487,2]
[366359663,1750209055011,-326.96,0.00016487,2]
[366359664,1750209055021,-709.66,0.00016487,2]
[366359665,1750209055031,-163.48,0.00016487,2]
[366359666,1750209055041,-354.83,0.00016487,2]
[366359667,1750209055051,-1107.80893713,0.00016488,2]
[366359668,1750209055061,-213.59459246,0.00016493,2]
[366359669,1750209055071,-150.0,0.00016493,2]
[366359670,1750209055081,-500.0,0.00016493,2]
[366359671,1750209055091,-500.0,0.00016493,2]
[366359672,1750209055102,-150.0,0.00016493,2]
[366359673,1750209055112,-163.48,0.000165,2]
[366359674,1750209055122,-163.48,0.000165,2]
[366359675,1750209055131,-900.0,0.000165,6]
[366359676,1750209055142,-150.0,0.0001652,2]
[366359677,1750209055152,-500.0,0.0001652,2]
[366359678,1750209055163,-500.0,0.0001652,2]
[366359679,1750209055173,-150.0,0.0001652,2]
[366359680,1750209055183,-475.71533961,0.00016521,2]
[366359681,1750209055193,-1288.7656338,0.00016525,2]
[366359682,1750209055203,-150.0,0.0001654,2]
[366359683,1750209055214,-500.0,0.00016543,2]
[366359684,1750209055226,-241.47438079,0.00016548,2]
[366359685,1750209055236,-500.0,0.00016548,2]
[366359686,1750209055247,-500.0,0.00016548,2]
[366359687,1750209055257,-150.0,0.00016548,2]
[366359688,1750209055268,-500.0,0.00016556,2]
[366359689,1750209055278,-5889.98,0.00016556,2]
[366359690,1750209055288,-153.0854194,0.00016557,2]
[366359691,1750209055298,-500.0,0.00016575,2]
[366359692,1750209055309,-573.0,0.00016575,2]
[366359693,1750209055319,-233.44849715,0.00016575,2]
[366359694,1750209055329,-1288.7656338,0.00016588,2]
[366359695,1750209055340,-3071.76560768,0.0001659,2]
[366359696,1750209055350,-5051.7303359,0.00016599,2]
[366359697,1750209055360,-12928.0646771,0.00016599,2]
[366359698,1750209055370,-500.0,0.00016599,2]
[366359699,1750209055380,-178.97,0.00016599,2]
[366359700,1750209055390,-743.54,0.000166,2]
[366359701,1750209055399,-163.48,0.000166,2]
[366359702,1750209055409,-163.48,0.000166,2]
[366359703,1750209055419,-25517.84781071,0.000166,2]
[366359704,1750209056002,-151.0,0.00016438,2]
[366359705,1750209056012,-457.11128219,0.000166,2]
[366359706,1750209057029,-151.0,0.00016438,2]
[366359707,1750209057039,-151.0,0.00016438,2]
[366359708,1750209057048,-305.842446,0.00016438,2]
[366359709,1750209057058,-305.842446,0.00016438,2]
[366359710,1750209057068,-3076.44,0.00016438,2]
[366359711,1750209057077,-305.842446,0.00016438,2]
[366359712,1750209057087,-305.842446,0.00016438,2]
[366359713,1750209057097,-78704.96981063,0.000166,2]
[366359714,1750209057109,-395.68920678,0.000166,2]
[366359715,1750209057130,-2792.54353446,0.000166,2]
[366359716,1750209057141,-276.48679559,0.000166,2]
[366359719,1750209639540,1693.87254634,0.00024649,120]
[366359729,1750210137300,1280.0,0.00024658,120]
[366359730,1750210147988,1280.0,0.00024658,120]
[366359734,1750210162619,1280.0,0.00024658,120]
[366359747,1750210179753,983.929,0.00024658,120]
[366359752,1750210199752,612.15456884,0.00024416,120]
[366359756,1750210231810,-217.48,0.00013699,2]
[366359757,1750210231821,-201.0,0.00014268,2]
[366359758,1750210231831,-1000.0,0.00015236,2]
[366359759,1750210231841,-248.21,0.00015543,2]
[366359760,1750210231852,-201.0,0.00015744,3]
[366359761,1750210231861,-163.48,0.00015878,2]
[366359762,1750210231871,-163.48,0.00015878,2]
[366359763,1750210231880,-2457.41248626,0.000159,2]
[366359764,1750210231889,-326.96,0.00015978,2]
[366359766,1750210231899,-300.0,0.00015999,2]
[366359768,1750210231908,-1200.0,0.00015999,2]
[366359770,1750210231918,-5614.8931481,0.00016,2]
[366359772,1750210231928,-501.93,0.00016022,2]
[366359774,1750210231937,-508.34,0.00016022,2]
[366359776,1750210231946,-305.71,0.00016022,2]
[366359778,1750210231956,-509.55,0.00016022,2]
[366359780,1750210231965,-2457.41248614,0.00016038,2]
[366359782,1750210231975,-506.22,0.00016134,2]
[366359784,1750210231984,-498.84,0.00016134,2]
[366359787,1750210231993,-303.19,0.00016134,2]
[366359790,1750210232003,-492.47,0.00016134,2]
[366359792,1750210232013,-2457.41248614,0.00016176,2]
[366359795,1750210232023,-200.0,0.00016283,2]
[366359797,1750210232037,-872.26867705,0.00016301,2]
[366359798,1750210232047,-200.0,0.00016311,2]
[366359799,1750210232058,-2457.41248614,0.00016314,2]
[366359800,1750210232068,-200.0,0.00016318,2]
[366359801,1750210232077,-207.4,0.00016327,2]
[366359802,1750210232087,-509.07,0.00016337,2]
[366359803,1750210232097,-499.19,0.00016337,2]
[366359805,1750210232109,-303.04,0.00016337,2]
[366359807,1750210232119,-304.02,0.00016337,2]
[366359809,1750210232128,-505.26,0.00016337,2]
[366359811,1750210232137,-499.91,0.00016337,2]
[366359813,1750210232147,-303.86,0.00016337,2]
[366359815,1750210232157,-499.84,0.00016337,2]
[366359817,1750210232166,-506.5,0.00016337,2]
[366359819,1750210232176,-302.4,0.00016337,2]
[366359821,1750210232185,-153.0854194,0.00016338,2]
[366359823,1750210232196,-179.96852333,0.00016387,2]
[366360241,1750210240064,-546.2696,0.00016338,2]
[366360242,1750210240073,-682.1954,0.00016387,2]
[366360265,1750210242233,170.1598115,0.00024412,120]
[366360273,1750210289795,1571.08156189,0.00024658,120]
[366360276,1750210524594,1067.7415505,0.000246,120]
[366360277,1750210534489,1132.3,0.00024658,120]
[366360278,1750210587432,171.0,0.00018001,29]
[366360279,1750210858084,2450.0,0.00024658,120]
[366360280,1750210889059,2940.0,0.00024658,120]
[366360281,1750210916362,2450.0,0.00024658,120]
[366360282,1750210940543,1470.0,0.00024658,120]
[366360283,1750210955037,157.47,0.00024658,120]
[366360290,1750211216340,490.5218336,0.000246,120]
[366360334,1750211378891,-202.0,0.00013219,2]
[366360335,1750211378915,-206.6,0.00013699,2]
[366360336,1750211384355,-202.0,0.00014728,3]
[366360337,1750211388338,-2646.08765393,0.00013599,2]
[366360344,1750211431639,-208.68,0.00013699,2]
[366360345,1750211431650,-250.0,0.00015068,2]
[366360346,1750211431660,-250.0,0.00015068,2]
[366360347,1750211431669,-274.83,0.00015236,2]
[366360348,1750211431679,-194.83,0.00015236,2]
[366360349,1750211431689,-320.87515664,0.00015236,2]
[366360350,1750211431701,-345.12484336,0.00015236,2]
[366360351,1750211431710,-170.96,0.00015236,2]
[366360352,1750211431719,-200.0,0.00015236,7]
[366360353,1750211431729,-282.55904577,0.00015452,2]
[366360354,1750211431740,-220.44095423,0.00015452,2]
[366360355,1750211431750,-300.0,0.00015478,2]
[366360356,1750211431759,-1200.0,0.00015478,2]
[366360357,1750211431769,-1000.0,0.00015479,2]
[366360358,1750211431778,-154.94,0.00015483,2]
[366360359,1750211431788,-1163.76,0.00015778,2]
[366360360,1750211431797,-167.64,0.00015865,2]
[366360361,1750211431808,-563.19,0.00016,2]
[366360362,1750211431817,-499.71,0.00016098,2]
[366360363,1750211431827,-497.68,0.00016098,2]
[366360364,1750211431836,-304.79,0.00016098,2]
[366360365,1750211431846,-163.48,0.000161,2]
[366360366,1750211431856,-150.41,0.00016213,2]
[366360367,1750211431865,-202.0,0.00016237,5]
[366360368,1750211431875,-253.0,0.00016273,2]
[366360369,1750211431886,-199.44,0.00016274,2]
[366360370,1750211431896,-1164.87,0.00016274,2]
[366360371,1750211431906,-207.4,0.00016328,2]
[366360372,1750211431915,-428.27371022,0.00016328,2]
[366360373,1750211431925,-164.27617543,0.00016338,2]
[366360374,1750211431935,-866.72801901,0.00016338,2]
[366360375,1750211431944,-381.11699778,0.00016338,2]
[366360376,1750211431953,-665.22694513,0.00016338,2]
[366360377,1750211431964,-153.87656581,0.00016338,2]
[366360378,1750211431974,-278.477,0.00016338,2]
[366360379,1750211431984,-10.10475372,0.00016387,2]
[366360380,1750211431995,-872.26867705,0.00016388,2]
[366360381,1750211432006,-300.0,0.0001641,2]
[366360383,1750211432015,-498.86,0.00016411,2]
[366360385,1750211432027,-506.8,0.00016411,2]
[366360387,1750211432036,-303.38,0.00016411,2]
[366360390,1750211432046,-24978.84976172,0.00016411,2]
[366360395,1750211432072,-738.09674122,0.00016411,2]
[366360418,1750211432144,-924.677146,0.00016411,2]
[366360422,1750211432155,-147.85635106,0.00016411,2]
[366360424,1750211432165,-725.08867758,0.00016411,2]
[366360426,1750211432174,-665.22694511,0.00016411,2]
[366360428,1750211432183,-151.0,0.00016426,2]